fUST/lending_fUST_20250731
["ID","MTS","AMOUNT","RATE_DAILY","PERIOD"]
[376257295,1753909841411,-151.0,0.00026533,7]
[376257298,1753909841421,-151.0,0.00026533,7]
[376257301,1753909841432,-151.0,0.00026533,7]
[376257304,1753909841441,-151.0,0.00026533,7]
[376257307,1753909841452,-254.044214,0.00026533,7]
[376257311,1753909841463,-151.0,0.00026533,7]
[376257314,1753909841473,-151.0,0.00026533,7]
[376257317,1753909841483,-151.0,0.00026533,7]
[376257320,1753909841493,-151.0,0.00026533,7]
[376257323,1753909841503,-151.0,0.00026533,7]
[376257326,1753909841512,-235.800514,0.00026533,7]
[376257329,1753909841522,-151.0,0.00026533,7]
[376257332,1753909841532,-151.0,0.00026533,7]
[376257335,1753909841543,-151.0,0.00026533,7]
[376257338,1753909841553,-151.0,0.00026533,7]
[376257342,1753909841563,-151.0,0.00026533,7]
[376257345,1753909841573,-151.0,0.00026533,7]
[376257348,1753909841582,-151.0,0.00026533,7]
[376257351,1753909841592,-151.0,0.00026533,7]
[376257354,1753909841602,-151.0,0.00026533,7]
[376257357,1753909841612,-151.0,0.00026533,7]
[376257360,1753909841621,-170.68744,0.00026533,7]
[376257363,1753909841630,-5063.23907375,0.00026533,3]
[376257377,1753909841689,-7559.12962013,0.00026533,3]
[376257379,1753909841699,-214.60001286,0.00026533,3]
[376257382,1753909841710,-419.94244184,0.00026535,2]
[376257385,1753909841719,-39351.91491251,0.00026535,20]
[376257475,1753909842161,-9398.24575139,0.00026535,20]
[376257693,1753909843570,-5000.0,0.00024953,2]
[376257695,1753909843580,-9490.96748548,0.00026535,20]
[376257993,1753909846448,-500.0,0.00026344,2]
[376257995,1753909846459,-43893.40587447,0.00026535,20]
[376257997,1753909846471,-1193.04204741,0.00026535,20]
[376258001,1753909846484,-48320.45550353,0.00026535,20]
[376258007,1753909846496,-3303.95468031,0.00026535,20]
[376260557,1753909879004,150.0,0.00021871,30]
[376261171,1753909885251,200.325858,0.00013699,2]
[376263837,1753909964978,150.0,0.0002173,30]
[376263838,1753910047987,150.0,0.00021863,30]
[376263841,1753910132198,150.0,0.00021801,30]
[376263843,1753910215183,150.0,0.000218,30]
[376263850,1753910430647,1441.22904384,0.00019501,2]
[376263851,1753910565499,150.0,0.00021697,30]
[376263852,1753910646606,150.0,0.00021669,30]
[376263853,1753910731720,150.0,0.00021672,30]
[376263859,1753910812933,150.0,0.00021663,30]
[376263862,1753910894481,150.0,0.00021663,30]
[376263864,1753910910277,7888.54493616,0.0001944,2]
[376263865,1753910910300,30000.0,0.0001944,2]
[376263866,1753910910322,30000.0,0.0001944,2]
[376263867,1753910910345,30000.0,0.0001944,2]
[376263868,1753910910369,4782.94786094,0.0001944,2]
[376263869,1753910946223,-5000.0,0.00019786,2]
[376263870,1753910946243,-1567.6897056,0.00019986,2]
[376263871,1753910946265,-200.325858,0.00020187,2]
[376263872,1753910946287,-460.0,0.00020782,2]
[376263873,1753910946310,-279.19274528,0.00021056,2]
[376263874,1753910946331,-300.0,0.00021768,2]
[376263875,1753910946352,-12235.41460248,0.00021769,2]
[376263876,1753910946372,-1324.7173189,0.00021918,7]
[376263877,1753910946393,-60816.76700371,0.00022,3]
[376263878,1753910946531,-467.52,0.00022282,2]
[376263879,1753910946555,-460.0,0.00022282,2]
[376263880,1753910946578,-282.33,0.00022282,2]
[376263881,1753910946601,-460.0,0.00022556,2]
[376263882,1753910946624,-460.0,0.00022556,2]
[376263883,1753910946646,-731.0,0.0002274,2]
[376263884,1753910946666,-24900.0,0.00022741,2]
[376263885,1753910946689,-460.0,0.0002283,2]
[376263886,1753910946712,-460.0,0.0002283,2]
[376263887,1753910946731,-10000.0,0.00022899,2]
[376263888,1753910946751,-27398.32621763,0.000229,7]
[376263889,1753910949174,-1486.9228213,0.000229,7]
[376263890,1753910950122,-2583.55127931,0.000229,7]
[376263891,1753910950143,-479.33075422,0.0002298,2]
[376263893,1753910975051,150.0,0.0002247,30]
[376263924,1753911032861,-338.91554705,0.00022282,2]
[376263996,1753911038970,-121.08445295,0.00022282,2]
[376263998,1753911038980,-460.0,0.00022556,2]
[376264000,1753911038991,-254.15274747,0.00022556,2]
[376264001,1753911039000,-746.13274528,0.0002275,2]
[376264002,1753911039011,-460.0,0.0002275,2]
[376264003,1753911039023,-3793.86725472,0.0002275,2]
[376264004,1753911039032,-460.0,0.0002283,2]
[376264005,1753911039041,-522.40597989,0.0002298,2]
[376264007,1753911039051,-1572.37521146,0.0002298,2]
[376264009,1753911039061,-451.12,0.00023,2]
[376264011,1753911039071,-332.43798604,0.00023,2]
[376264013,1753911039080,-460.0,0.00023104,2]
[376264015,1753911039090,-322.2,0.00023104,2]
[376264017,1753911039099,-250.200798,0.0002332,2]
[376264019,1753911039108,-460.0,0.00023378,2]
[376264022,1753911039118,-200.0,0.00023439,15]
[376264024,1753911039128,-200.0,0.00023439,15]
[376264026,1753911039142,-200.0,0.00023439,15]
[376264028,1753911039157,-200.0,0.00023439,15]
[376264031,1753911039171,-200.0,0.00023439,15]
[376264033,1753911039184,-200.0,0.00023439,15]
[376264035,1753911039196,-0.96015712,0.00023439,15]
[376264038,1753911039212,-199.03984288,0.00023439,15]
[376264040,1753911039224,-200.0,0.00023439,15]
[376264042,1753911039236,-200.0,0.00023439,15]
[376264045,1753911039246,-144.97481194,0.00023439,15]
[376264047,1753911039259,-55.02518806,0.00023439,15]
[376264049,1753911039270,-460.0,0.00023652,2]
[376264051,1753911039281,-310.45633156,0.00023735,2]
[376264208,1753911040790,-1180.9,0.00023378,2]
[376264796,1753911046818,-178.12529,0.00021879,2]
[376264800,1753911046829,-957.26425524,0.00022067,2]
[376264802,1753911046840,-478.63212762,0.00022291,2]
[376264804,1753911046851,-1572.37521146,0.00023735,2]
[376264806,1753911046861,-3147.36894793,0.00023735,2]
[376266251,1753911061220,150.0,0.00021667,30]
[376269204,1753911112060,180.293272,0.00013699,2]
[376269206,1753911145039,150.0,0.00021893,30]
[376269207,1753911184767,188.302268,0.00023414,120]
[376269209,1753911226912,150.0,0.00021676,30]
[376269210,1753911308475,150.0,0.00021576,30]
[376269211,1753911345218,400.7182311,0.00019386,2]
[376269212,1753911346774,250.16,0.00023,30]
[376269213,1753911395710,150.0,0.00021587,30]
[376269216,1753911481503,150.0,0.00021594,30]
[376269217,1753911563649,150.0,0.00021575,30]
[376269218,1753911646613,150.0,0.00021348,30]
[376269219,1753911727958,150.0,0.00021381,30]
[376269220,1753911808782,150.0,0.00021379,30]
[376269221,1753911890543,150.0,0.00021411,30]
[376269223,1753911947507,263.03899101,0.00018987,2]
[376269224,1753911970942,150.0,0.00021413,30]
[376269228,1753912050943,150.0,0.00021379,30]
[376269231,1753912121216,194.773617,0.00013699,2]
[376269232,1753912134507,150.0,0.00021383,30]
[376269233,1753912188296,5000.0,0.00019501,2]
[376269241,1753912204110,5000.0,0.00019501,2]
[376269242,1753912216353,150.0,0.00021379,30]
[376269244,1753912219413,5000.0,0.00019501,2]
[376269295,1753912232397,-150.0,0.00019576,2]
[376269297,1753912232408,-194.773617,0.00020187,2]
[376269298,1753912232418,-81.406383,0.00020383,2]
[376269299,1753912232430,-315.7378245,0.00020383,2]
[376269300,1753912232439,-513.75008781,0.000209,4]
[376269301,1753912232449,-513.75008774,0.00021107,4]
[376269302,1753912232459,-182.87869568,0.00021176,2]
[376269303,1753912232468,-1200.0,0.00021185,2]
[376269304,1753912232477,-300.0,0.00021186,2]
[376269305,1753912232487,-300.0,0.00021186,2]
[376269306,1753912232501,-300.0,0.00021186,2]
[376269307,1753912232511,-1068.0,0.00021187,2]
[376269308,1753912232520,-460.0,0.00021187,2]
[376269309,1753912232530,-460.0,0.00021187,2]
[376269310,1753912232539,-462.68571048,0.00021187,2]
[376269311,1753912232548,-460.0,0.00021187,2]
[376269313,1753912232558,-209.97122092,0.00021188,2]
[376269315,1753912232567,-343.1862803,0.00021188,2]
[376269317,1753912232578,-461.52954051,0.00021188,2]
[376269319,1753912232588,-460.0,0.00021188,2]
[376269322,1753912232598,-460.88251901,0.00021188,2]
[376269324,1753912232607,-500.0,0.00021188,2]
[376269326,1753912232617,-460.0,0.00021188,2]
[376269328,1753912232626,-460.0,0.00021188,2]
[376269329,1753912232635,-460.0,0.00021188,2]
[376269330,1753912232644,-460.0,0.00021188,2]
[376269331,1753912232653,-460.0,0.00021188,2]
[376269332,1753912232663,-460.0,0.00021188,2]
[376269333,1753912232676,-460.0,0.00021188,2]
[376269334,1753912232687,-384.83249939,0.00021188,2]
[376269336,1753912232696,-460.0,0.00021188,2]
[376269338,1753912232706,-1785.89,0.00021188,2]
[376269340,1753912232716,-1225.37,0.00021188,2]
[376269342,1753912232726,-308.6608633,0.00021188,2]
[376269344,1753912232735,-460.0,0.00021188,2]
[376269345,1753912232744,-460.0,0.00021188,2]
[376269346,1753912232754,-460.0,0.00021188,2]
[376269347,1753912232764,-325.76464645,0.00021188,2]
[376269348,1753912232774,-1061.41,0.00021188,2]
[376269349,1753912232783,-460.0,0.00021188,2]
[376269350,1753912232792,-460.0,0.00021188,2]
[376269351,1753912232802,-460.0,0.00021188,2]
[376269352,1753912232811,-460.0,0.00021188,2]
[376269353,1753912232821,-750.14,0.00021188,2]
[376269354,1753912232831,-460.0,0.00021188,2]
[376269355,1753912232840,-460.0,0.00021188,2]
[376269356,1753912232850,-460.0,0.00021188,2]
[376269357,1753912232859,-460.0,0.00021188,2]
[376269358,1753912232869,-460.0,0.00021188,2]
[376269359,1753912232878,-968.77,0.00021188,2]
[376269360,1753912232888,-464.39608282,0.00021188,2]
[376269361,1753912232897,-460.0,0.00021188,2]
[376269362,1753912232907,-740.37,0.00021188,2]
[376269363,1753912232917,-460.0,0.00021188,2]
[376269364,1753912232926,-400.0,0.00021188,2]
[376269365,1753912232935,-460.0,0.00021188,2]
[376269366,1753912232945,-460.0,0.00021188,2]
[376269367,1753912232954,-460.0,0.00021188,2]
[376269368,1753912232964,-378.812162,0.00021188,2]
[376269369,1753912232974,-7374.93758143,0.00021189,2]
[376269370,1753912233080,-1108.34526944,0.00021189,2]
[376269653,1753912241729,-5000.0,0.00020977,2]
[376269655,1753912241739,-2991.64031743,0.00021087,2]
[376269658,1753912241748,-375.5933072,0.00021187,2]
[376269659,1753912241757,-293.65114849,0.00021187,2]
[376269678,1753912241924,-460.0,0.00021188,2]
[376269681,1753912241935,-16416.71714913,0.00021189,2]
[376269683,1753912241944,-475.86071469,0.00021214,2]
[376269685,1753912241954,-513.75008774,0.00021314,5]
[376269687,1753912241963,-460.0,0.00021461,2]
[376269689,1753912241973,-460.0,0.00021462,2]
[376269691,1753912241982,-769.55068475,0.00021462,2]
[376269823,1753912243178,-1016.33931525,0.00021462,2]
[376269825,1753912243188,-1225.37,0.00021462,2]
[376269827,1753912243197,-460.0,0.00021462,2]
[376269829,1753912243206,-1061.41,0.00021462,2]
[376269831,1753912243216,-460.0,0.00021462,2]
[376269833,1753912243226,-423.82788906,0.00021462,2]
[376269835,1753912243235,-750.14,0.00021462,2]
[376269837,1753912243244,-460.0,0.00021462,2]
[376269839,1753912243254,-460.0,0.00021462,2]
[376269841,1753912243263,-460.0,0.00021462,2]
[376269843,1753912243273,-460.0,0.00021462,2]
[376269845,1753912243282,-968.77,0.00021462,2]
[376269847,1753912243292,-740.37,0.00021462,2]
[376269849,1753912243301,-460.0,0.00021462,2]
[376269851,1753912243310,-460.0,0.00021462,2]
[376269853,1753912243320,-460.0,0.00021462,2]
[376269855,1753912243329,-358.30912155,0.00021521,5]
[376269858,1753912243341,-155.44096619,0.00021521,5]
[376269860,1753912243351,-200.0,0.00021609,15]
[376269862,1753912243360,-200.0,0.00021609,15]
[376269864,1753912243369,-200.0,0.00021609,15]
[376269866,1753912243379,-200.0,0.00021609,15]
[376269868,1753912243388,-200.0,0.00021609,15]
[376269870,1753912243397,-200.0,0.00021609,15]
[376269872,1753912243406,-200.0,0.00021609,15]
[376269874,1753912243415,-200.0,0.00021609,15]
[376269876,1753912243424,-200.0,0.00021609,15]
[376269878,1753912243433,-200.0,0.00021609,15]
[376269880,1753912243442,-513.75008774,0.00021728,5]
[376269882,1753912243451,-421.36016872,0.00021736,2]
[376269884,1753912243460,-1785.89,0.00021736,2]
[376269886,1753912243470,-1225.37,0.00021736,2]
[376269887,1753912243479,-460.0,0.00021736,2]
[376269889,1753912243488,-1061.41,0.00021736,2]
[376269891,1753912243501,-460.0,0.00021736,2]
[376269894,1753912243512,-750.14,0.00021736,2]
[376269896,1753912243522,-460.0,0.00021736,2]
[376269898,1753912243533,-460.0,0.00021736,2]
[376269900,1753912243543,-460.0,0.00021736,2]
[376269902,1753912243553,-460.0,0.00021736,2]
[376269904,1753912243572,-968.77,0.00021736,2]
[376269906,1753912243582,-740.37,0.00021736,2]
[376269908,1753912243592,-460.0,0.00021736,2]
[376269910,1753912243601,-460.0,0.00021736,2]
[376269912,1753912243611,-178.729,0.00021759,2]
[376269914,1753912243620,-406.816,0.00021759,2]
[376269916,1753912243630,-513.75008774,0.00021934,6]
[376269918,1753912243639,-214.95885286,0.00021942,2]
[376269920,1753912243648,-841.2246943,0.00021942,2]
[376269922,1753912243658,-526.76118213,0.00021942,2]
[376269924,1753912243668,-160.0,0.00021942,2]
[376269926,1753912243678,-160.0,0.00021943,2]
[376269929,1753912243687,-475.86071465,0.00021962,2]
[376269932,1753912243697,-10000.0,0.00021994,2]
[376269934,1753912243706,-197.0,0.00022,2]
[376269936,1753912243716,-178.0,0.00022,2]
[376269938,1753912243725,-167.0,0.00022,2]
[376269940,1753912243735,-383.91,0.00022,10]
[376269942,1753912243744,-319.93,0.00022,10]
[376269944,1753912243754,-348.0753644,0.0002201,2]
[376270087,1753912245929,-1437.8146356,0.0002201,2]
[376270089,1753912245939,-1225.37,0.0002201,2]
[376270091,1753912245948,-460.0,0.0002201,2]
[376270093,1753912245958,-1061.41,0.0002201,2]
[376270095,1753912245967,-460.0,0.0002201,2]
[376270097,1753912245977,-750.14,0.0002201,2]
[376270099,1753912245986,-460.0,0.0002201,2]
[376270101,1753912245996,-460.0,0.0002201,2]
[376270103,1753912246005,-460.0,0.0002201,2]
[376270105,1753912246014,-460.0,0.0002201,2]
[376270107,1753912246024,-968.77,0.0002201,2]
[376270109,1753912246033,-740.37,0.0002201,2]
[376270111,1753912246043,-460.0,0.0002201,2]
[376270113,1753912246052,-460.0,0.0002201,2]
[376270114,1753912246061,-315.7812952,0.00022028,2]
[376270117,1753912246070,-954.55086,0.00022041,2]
[376270119,1753912246079,-513.75008774,0.00022141,6]
[376270120,1753912246089,-1785.89,0.00022284,2]
[376270123,1753912246098,-1225.37,0.00022284,2]
[376270124,1753912246108,-460.0,0.00022284,2]
[376270127,1753912246117,-1061.41,0.00022284,2]
[376270129,1753912246126,-460.0,0.00022284,2]
[376270131,1753912246136,-750.14,0.00022284,2]
[376270133,1753912246146,-460.0,0.00022284,2]
[376270135,1753912246155,-460.0,0.00022284,2]
[376270137,1753912246165,-460.0,0.00022284,2]
[376270139,1753912246174,-968.77,0.00022284,2]
[376270141,1753912246184,-740.37,0.00022284,2]
[376270143,1753912246193,-460.0,0.00022284,2]
[376270145,1753912246203,-460.0,0.00022284,2]
[376270147,1753912246212,-513.75008774,0.00022348,7]
[376270149,1753912246221,-195.96,0.00022548,3]
[376270150,1753912246230,-460.0,0.00022554,2]
[376270152,1753912246239,-460.0,0.00022554,2]
[376270154,1753912246249,-460.0,0.00022554,2]
[376270156,1753912246259,-460.0,0.00022554,2]
[376270159,1753912246269,-460.0,0.00022554,2]
[376270161,1753912246279,-460.0,0.00022554,2]
[376270163,1753912246289,-460.0,0.00022554,2]
[376270165,1753912246299,-606.90097164,0.00022554,2]
[376270166,1753912246308,-460.0,0.00022554,2]
[376270169,1753912246317,-460.0,0.00022554,2]
[376270171,1753912246327,-460.0,0.00022554,2]
[376270173,1753912246336,-460.0,0.00022554,2]
[376270174,1753912246346,-460.0,0.00022554,2]
[376270176,1753912246355,-503.23,0.00022554,2]
[376270178,1753912246365,-460.0,0.00022554,2]
[376270181,1753912246374,-460.0,0.00022554,2]
[376270183,1753912246384,-460.0,0.00022554,2]
[376270185,1753912246394,-460.0,0.00022554,2]
[376270187,1753912246403,-397.99319594,0.00022554,2]
[376270189,1753912246412,-510.00702442,0.00022554,2]
[376270191,1753912246422,-460.0,0.00022554,2]
[376270193,1753912246431,-460.0,0.00022554,2]
[376270195,1753912246441,-460.0,0.00022554,2]
[376270197,1753912246451,-460.0,0.00022554,2]
[376270199,1753912246461,-460.0,0.00022554,2]
[376270201,1753912246471,-460.0,0.00022554,2]
[376270203,1753912246480,-460.0,0.00022554,2]
[376270205,1753912246490,-460.0,0.00022554,2]
[376270207,1753912246504,-453.83520969,0.00022554,2]
[376270209,1753912246514,-460.0,0.00022554,2]
[376270211,1753912246524,-460.0,0.00022554,2]
[376270213,1753912246534,-460.0,0.00022554,2]
[376270215,1753912246546,-460.0,0.00022554,2]
[376270217,1753912246555,-460.0,0.00022554,2]
[376270219,1753912246565,-460.0,0.00022554,2]
[376270221,1753912246574,-460.0,0.00022554,2]
[376270223,1753912246584,-460.0,0.00022554,2]
[376270225,1753912246595,-460.0,0.00022554,2]
[376270227,1753912246604,-460.0,0.00022554,2]
[376270229,1753912246613,-460.0,0.00022554,2]
[376270231,1753912246623,-460.0,0.00022554,2]
[376270233,1753912246632,-460.0,0.00022554,2]
[376270235,1753912246641,-155.95801313,0.00022554,2]
[376270237,1753912246650,-460.0,0.00022554,2]
[376270239,1753912246659,-460.0,0.00022554,2]
[376270241,1753912246669,-460.0,0.00022554,2]
[376270243,1753912246678,-460.0,0.00022554,2]
[376270245,1753912246687,-460.0,0.00022554,2]
[376270247,1753912246697,-460.0,0.00022554,2]
[376270249,1753912246706,-513.75008774,0.00022555,7]
[376270251,1753912246715,-1785.89,0.00022558,2]
[376270254,1753912246725,-1225.37,0.00022558,2]
[376270256,1753912246735,-460.0,0.00022558,2]
[376270258,1753912246744,-1061.41,0.00022558,2]
[376270260,1753912246754,-460.0,0.00022558,2]
[376270262,1753912246763,-750.14,0.00022558,2]
[376270264,1753912246772,-460.0,0.00022558,2]
[376270265,1753912246781,-460.0,0.00022558,2]
[376270267,1753912246790,-460.0,0.00022558,2]
[376270269,1753912246800,-968.77,0.00022558,2]
[376270271,1753912246810,-740.37,0.00022558,2]
[376270273,1753912246819,-460.0,0.00022558,2]
[376270275,1753912246829,-460.0,0.00022558,2]
[376270277,1753912246838,-200.0,0.00022573,2]
[376270279,1753912246847,-500.0,0.00022703,2]
[376270281,1753912246857,-475.86071465,0.00022709,2]
[376270283,1753912246867,-391.92,0.00022729,3]
[376270285,1753912246876,-437.54887382,0.00022739,2]
[376270287,1753912246886,-460.0,0.00022739,2]
[376270289,1753912246895,-460.0,0.00022739,2]
[376270291,1753912246905,-460.0,0.00022739,2]
[376270293,1753912246916,-512.67,0.00022739,2]
[376270295,1753912246926,-460.0,0.00022739,2]
[376270297,1753912246935,-460.0,0.0002274,2]
[376270299,1753912246944,-460.0,0.0002274,2]
[376270301,1753912246954,-460.0,0.0002274,2]
[376270304,1753912246964,-460.0,0.0002274,2]
[376270305,1753912246974,-460.0,0.0002274,2]
[376270307,1753912246984,-460.0,0.0002274,2]
[376270309,1753912246993,-460.0,0.0002274,2]
[376270311,1753912247002,-460.0,0.0002274,2]
[376270313,1753912247011,-460.0,0.0002274,2]
[376270315,1753912247020,-460.0,0.0002274,2]
[376270317,1753912247030,-460.0,0.0002274,2]
[376270319,1753912247039,-460.0,0.0002274,2]
[376270321,1753912247048,-460.0,0.0002274,2]
[376270323,1753912247057,-460.0,0.0002274,2]
[376270325,1753912247066,-513.75008774,0.00022762,7]
[376270327,1753912247076,-669.05171975,0.00022781,2]
[376270330,1753912247086,-500.0,0.00022789,2]
[376270332,1753912247095,-587.91,0.00022822,3]
[376270334,1753912247105,-460.0,0.00022828,2]
[376270336,1753912247115,-460.0,0.00022828,2]
[376270338,1753912247124,-460.0,0.00022828,2]
[376270340,1753912247133,-460.0,0.00022828,2]
[376270342,1753912247142,-460.0,0.00022828,2]
[376270344,1753912247152,-460.0,0.00022828,2]
[376270346,1753912247162,-460.0,0.00022828,2]
[376270348,1753912247171,-460.0,0.00022828,2]
[376270350,1753912247180,-460.0,0.00022828,2]
[376270352,1753912247190,-274.88781059,0.00022828,2]
[376270354,1753912247199,-460.0,0.00022828,2]
[376270356,1753912247209,-460.0,0.00022828,2]
[376270358,1753912247219,-460.0,0.00022828,2]
[376270360,1753912247228,-460.0,0.00022828,2]
[376270362,1753912247238,-460.0,0.00022828,2]
[376270364,1753912247247,-460.0,0.00022828,2]
[376270366,1753912247257,-460.0,0.00022828,2]
[376270368,1753912247267,-460.0,0.00022828,2]
[376270370,1753912247276,-460.0,0.00022828,2]
[376270372,1753912247285,-460.0,0.00022828,2]
[376270374,1753912247294,-460.0,0.00022828,2]
[376270376,1753912247303,-460.0,0.00022828,2]
[376270377,1753912247312,-460.0,0.00022828,2]
[376270379,1753912247322,-460.0,0.00022828,2]
[376270382,1753912247332,-460.0,0.00022828,2]
[376270384,1753912247341,-460.0,0.00022828,2]
[376270386,1753912247350,-460.0,0.00022828,2]
[376270388,1753912247359,-460.0,0.00022828,2]
[376270389,1753912247369,-1785.89,0.00022832,2]
[376270391,1753912247378,-1225.37,0.00022832,2]
[376270393,1753912247388,-460.0,0.00022832,2]
[376270395,1753912247397,-1061.41,0.00022832,2]
[376270397,1753912247407,-460.0,0.00022832,2]
[376270399,1753912247416,-750.14,0.00022832,2]
[376270402,1753912247425,-460.0,0.00022832,2]
[376270404,1753912247435,-460.0,0.00022832,2]
[376270405,1753912247444,-460.0,0.00022832,2]
[376270407,1753912247454,-968.77,0.00022832,2]
[376270410,1753912247463,-740.37,0.00022832,2]
[376270412,1753912247472,-460.0,0.00022832,2]
[376270414,1753912247481,-460.0,0.00022832,2]
[376270416,1753912247490,-513.75008774,0.00022969,8]
[376270418,1753912247505,-500.0,0.00022977,2]
[376270430,1753912247610,-538.1,0.00023,2]
[376270432,1753912247619,-460.0,0.00023013,2]
[376270434,1753912247629,-460.0,0.00023013,2]
[376270436,1753912247638,-491.11,0.00023013,2]
[376270438,1753912247647,-460.0,0.00023013,2]
[376270440,1753912247656,-460.0,0.00023013,2]
[376270442,1753912247665,-512.67,0.00023013,2]
[376270444,1753912247675,-460.0,0.00023013,2]
[376270446,1753912247684,-460.0,0.00023013,2]
[376270448,1753912247694,-460.0,0.00023014,2]
[376270450,1753912247703,-460.0,0.00023014,2]
[376270452,1753912247712,-460.0,0.00023014,2]
[376270454,1753912247721,-511.18,0.00023014,2]
[376270456,1753912247730,-460.0,0.00023014,2]
[376270458,1753912247739,-460.0,0.00023014,2]
[376270460,1753912247748,-179.76630381,0.00023036,2]
[376270462,1753912247757,-420.0,0.00023041,2]
[376270464,1753912247767,-155.0,0.00023041,2]
[376270466,1753912247776,-460.0,0.00023102,2]
[376270468,1753912247786,-460.0,0.00023102,2]
[376270470,1753912247795,-460.0,0.00023102,2]
[376270472,1753912247804,-460.0,0.00023102,2]
[376270474,1753912247814,-460.0,0.00023102,2]
[376270476,1753912247823,-460.0,0.00023102,2]
[376270478,1753912247833,-460.0,0.00023102,2]
[376270480,1753912247842,-460.0,0.00023102,2]
[376270482,1753912247851,-460.0,0.00023102,2]
[376270484,1753912247861,-460.0,0.00023102,2]
[376270486,1753912247870,-460.0,0.00023102,2]
[376270488,1753912247880,-460.0,0.00023102,2]
[376270490,1753912247890,-460.0,0.00023102,2]
[376270492,1753912247900,-460.0,0.00023102,2]
[376270494,1753912247909,-460.0,0.00023102,2]
[376270496,1753912247918,-460.0,0.00023102,2]
[376270498,1753912247928,-606.87162102,0.00023102,2]
[376270500,1753912247937,-373.9671391,0.00023102,2]
[376270503,1753912247951,-46.28083352,0.00023102,2]
[376270505,1753912247960,-460.0,0.00023102,2]
[376270507,1753912247969,-460.0,0.00023102,2]
[376270508,1753912247978,-460.0,0.00023102,2]
[376270510,1753912247987,-460.0,0.00023102,2]
[376270512,1753912247996,-460.0,0.00023102,2]
[376270514,1753912248004,-460.0,0.00023102,2]
[376270516,1753912248015,-460.0,0.00023102,2]
[376270518,1753912248024,-579.13902897,0.00023102,2]
[376270520,1753912248033,-160.0,0.00023104,2]
[376270522,1753912248043,-1785.89,0.00023106,2]
[376270524,1753912248052,-1225.37,0.00023106,2]
[376270526,1753912248062,-460.0,0.00023106,2]
[376270528,1753912248071,-1061.41,0.00023106,2]
[376270530,1753912248080,-460.0,0.00023106,2]
[376270532,1753912248090,-689.35832505,0.00023106,2]
[376270535,1753912248103,-60.78167495,0.00023106,2]
[376270537,1753912248114,-460.0,0.00023106,2]
[376270539,1753912248123,-460.0,0.00023106,2]
[376270541,1753912248132,-968.77,0.00023106,2]
[376270543,1753912248141,-740.37,0.00023106,2]
[376270545,1753912248150,-460.0,0.00023106,2]
[376270547,1753912248160,-460.0,0.00023106,2]
[376270549,1753912248169,-35.44119171,0.00023149,2]
[376273559,1753912566028,150.0,0.00021422,30]
[376273561,1753912927278,150.0,0.00021397,30]
[376273562,1753913009581,150.0,0.00021406,30]
[376273564,1753913090444,150.0,0.00021395,30]
[376273620,1753913432598,-5000.0,0.00019733,2]
[376273622,1753913432608,-1200.0,0.00019931,2]